Cogmind - Beta 17.1 @@@ ROGUE MODE // 2026.09.20 @ 14:44:01 // Winter2019/RPGLIKE Player: Gallgagger Result: Self-destructed Performance ------------- Evolutions (5) 2500 Regions Visited (13) 2600 Robots Destroyed (414) 2070 Value Destroyed (20063) 20063 Prototype IDs (10) 200 Alien Tech Used (0) 0 Bonus (14843) 14843 TOTAL SCORE: 42276 Bonus ------- Triggered High Security 1000 High Alert Combat Kills 12030 Follower Combat Kills 800 Entered Garrisons 400 Registered with UFD 300 Met Optimus in HQ 500 Friendly Fire -187 Cogmind --------- Core Integrity 121/600 Matter 300/300 Energy 303/350 System Corruption 0% Temperature Cool (10) Movement Rolling (28) Location -5/Factory Parts ------- > --- POWER (2) -------- Enhanced Nuclear Core Micro Nuclear Core > --- PROPULSION (5) --- Ballwheel Xenon Bombardment Thruster > --- UTILITY (9) ------ Advanced Weight Redist. System Rocket Booster Deep Structural Scanner Improved Signal Interpreter Reaction Control System Graphene Brace Focal Shield Hardlight Generator > --- WEAPON (5) ------- Ripteeth Ripteeth Ripteeth DM-GVY's Chainsaw > --- INVENTORY (3) ---- Enhanced Autogun CPS Tube (2) Peak State ------------ > --- POWER ------------ Enhanced Nuclear Core Micro Nuclear Core > --- PROPULSION ------- Ballwheel Xenon Bombardment Thruster > --- UTILITY ---------- Advanced Weight Redist. System Rocket Booster Deep Structural Scanner Improved Signal Interpreter Advanced Targeting Computer Weapon Cycler Reaction Control System Graphene Brace Hardlight Generator > --- WEAPON ----------- Ripteeth Ripteeth Ripteeth Ripteeth DM-GVY's Chainsaw > --- INVENTORY -------- Enhanced Autogun CPS Tube [Rating: 92] Favorites ----------- Power Light Nuclear Core Engine Light Ion Engine Power Core Light Nuclear Core Propulsion Improved VTOL Module Treads Light Treads Wheel Ballwheel Flight Unit Improved VTOL Module Utility Improved Signal Interpreter Device Hardlight Generator Processor Improved Signal Interpreter Protection Reactive Plating Weapon Assault Rifle Energy Gun Particle Gun Ballistic Gun Assault Rifle Special Weapon CPS Tube Slashing Weapon Ripteeth Build | -11 -10 -10 -9 -9 -8 -8 -8 -8 -7 -7 -7 -7 -5 ------- Run | Yrd Mat Min Mat Min Mat Gar Mat Gar Fac Sto Rec Scr Fac Slots Evolved 17 | 4 2 1 2 1 2 . 2 . 1 . . 1 1 Power 1 | . . . . . . . 1 . . . . . . Propulsion 4 | 1 1 . . . 1 . . . 1 . . . . Utility 8 | 2 1 1 2 . 1 . 1 . . . . . . Weapon 4 | 1 . . . 1 . . . . . . . 1 1 Parts Attached 73 | 7 11 4 2 . 11 . 5 2 13 4 1 9 4 Power 7 | 2 . 1 . . . . 1 . 2 . . 1 . Engine 3 | 2 . . . . . . . . . . . 1 . Core 4 | . . 1 . . . . 1 . 2 . . . . Reactor . | . . . . . . . . . . . . . . Propulsion 19 | 2 8 . . . 5 . 1 . 2 . . 1 . Treads 2 | 2 . . . . . . . . . . . . . Leg . | . . . . . . . . . . . . . . Wheel 1 | . . . . . . . . . . . . 1 . Hover . | . . . . . . . . . . . . . . Flight 16 | . 8 . . . 5 . 1 . 2 . . . . Utility 26 | 1 3 3 2 . 3 . 2 1 6 . 1 3 1 Device 13 | 1 . 1 . . 1 . 2 1 3 . . 3 1 Storage . | . . . . . . . . . . . . . . Processor 3 | . . 1 1 . . . . . 1 . . . . Hackware . | . . . . . . . . . . . . . . Protection 10 | . 3 1 1 . 2 . . . 2 . 1 . . Artifact . | . . . . . . . . . . . . . . Weapon 21 | 2 . . . . 3 . 1 1 3 4 . 4 3 Energy Gun 8 | . . . . . 2 . 1 . 2 3 . . . Energy Cannon . | . . . . . . . . . . . . . . Ballistic Gun 6 | 2 . . . . 1 . . 1 1 1 . . . Ballistic Cannon . | . . . . . . . . . . . . . . Launcher . | . . . . . . . . . . . . . . Special Weapon 2 | . . . . . . . . . . . . 2 . Impact Weapon . | . . . . . . . . . . . . . . Slashing Weapon 5 | . . . . . . . . . . . . 2 3 Piercing Weapon . | . . . . . . . . . . . . . . Special Melee Weapon . | . . . . . . . . . . . . . . Unidentified Prototypes 8 | . . . . . 2 . 1 . 2 3 . . . Parts Lost 3 | . . . . . . . . 1 . 1 . . 1 Power . | . . . . . . . . . . . . . . Propulsion . | . . . . . . . . . . . . . . Utility 2 | . . . . . . . . 1 . 1 . . . Weapon 1 | . . . . . . . . . . . . . 1 Highest Loss Streak 1 | . . . . . . . . 1 . 1 . . 1 To Critical Strikes . | . . . . . . . . . . . . . . Average Backups . | . . 1 1 1 1 2 1 . . . . 1 2 Power . | . . . . . . . . . . . . . . Propulsion . | . . . . . . . . . . . . . . Utility . | . . 1 1 1 1 2 1 . . . . . . Weapon . | . . . . . . . . . . . . . 1 Tool/Special . | . . . . . . . . . . . . . . Unused Backups 1 | . . . . . 1 . . . . . . . . Power . | . . . . . . . . . . . . . . Propulsion . | . . . . . . . . . . . . . . Utility 1 | . . . . . 1 . . . . . . . . Weapon . | . . . . . . . . . . . . . . Tool/Special . | . . . . . . . . . . . . . . Average Slot Usage (%) 95 | . 85 92 91 99 97 100 99 99 97 99 98 95 78 Engine 1 | . 11 2 . . . . . . . . . . . Core 7 | . . 6 7 7 6 6 7 11 10 10 10 9 9 Flight 24 | . 23 27 24 22 24 25 24 22 24 26 26 24 4 Device 19 | . 8 10 15 14 13 18 19 23 30 31 31 30 32 Processor 8 | . . 4 8 14 12 12 11 9 7 10 10 10 4 Protection 13 | . 13 21 18 22 19 18 17 15 6 4 4 1 . Energy Gun 3 | . . . . . 4 6 5 5 6 5 5 4 . Ballistic Gun 13 | . 22 18 15 14 12 12 11 11 9 10 10 9 . Peak Build Rating 92 | 6 16 22 28 28 46 46 61 67 77 76 74 88 92 Average Rating 45 | 4 10 18 24 28 35 45 49 63 72 75 73 77 87 On Entrance 44 | . 6 15 21 28 28 46 46 61 64 76 71 74 88 Avg Prop Armor Cover (%) 9 | 22 21 . . . . . . . 1 . . 1 1 Naked Turns . | . . . . . . . . . . . . . . Heaviest Build 55 | 9 22 25 32 32 37 35 40 44 55 54 36 43 43 Greatest Support 64 | 25 22 27 32 32 40 40 49 49 56 56 56 64 64 Greatest Overweight (x) 1 | 1 . . . . . . . . 1 1 . . . Average Overweight (x) . | . . . . . . . . . . . . . . Largest Inventory Capacity 3 | 1 2 2 2 2 2 2 2 2 2 2 2 3 3 Average Capacity 1 | 1 1 2 2 2 2 2 2 2 2 2 2 2 3 Most Carried 3 | 1 2 2 2 2 2 2 2 2 2 2 2 3 3 Average Carried 1 | . . 1 1 1 1 2 1 1 1 . . 1 2 Final Capacity 3 | 1 2 2 2 2 2 2 2 2 2 2 2 3 3 Final Carried 3 | 1 1 2 2 1 2 2 1 . 2 2 1 3 2 Class Distribution -------------------- 82% | Sprinter 8% | Scavenger-Sprinter 3% | Mutant Dominant Class ---------------- Sprinter | -10/Materials Sprinter | -10/Mines Sprinter | -9/Materials Sprinter | -9/Mines Sprinter | -8/Materials Sprinter | -8/Garrison Sprinter | -8/Materials Sprinter | -8/Garrison Sprinter | -7/Factory Sprinter | -7/Storage Sprinter | -7/Recycling Sprinter | -7/Scraptown Scavenger-Gladiator | -5/Factory Resources | -11 -10 -10 -9 -9 -8 -8 -8 -8 -7 -7 -7 -7 -5 ----------- Run | Yrd Mat Min Mat Min Mat Gar Mat Gar Fac Sto Rec Scr Fac Matter Collected 10604 | 342 962 212 1182 119 1437 1017 920 915 1008 1165 172 1113 40 Remotely . | . . . . . . . . . . . . . . Salvage Created 17285 | 216 1099 253 2478 118 2554 1287 1968 1494 2086 2530 86 602 514 Parts 955 | 12 73 11 147 26 167 61 114 92 96 118 4 19 15 Haulers Intercepted 3 | . . . . . . . . . . 1 . . 2 Recyclers Shooed 1 | . . . . . 1 . . . . . . . . Parts Field Recycled . | . . . . . . . . . . . . . . Retrieved Matter . | . . . . . . . . . . . . . . Parts Self-Destructed . | . . . . . . . . . . . . . . Prevented . | . . . . . . . . . . . . . . Parts Restored . | . . . . . . . . . . . . . . Kills | -11 -10 -10 -9 -9 -8 -8 -8 -8 -7 -7 -7 -7 -5 ------- Run | Yrd Mat Min Mat Min Mat Gar Mat Gar Fac Sto Rec Scr Fac Combat Hostiles Destroyed 390 | . 35 4 61 13 61 26 40 34 45 58 3 7 3 Melee 3 | . . . . . . . . . . . . . 3 Guns 387 | . 35 4 61 13 61 26 40 34 45 58 3 7 . Classes Destroyed 25 | 3 3 . 4 . 3 1 3 1 1 1 . 5 . Worker 4 | 2 . . 1 . . . . . . 1 . . . Builder 3 | . 1 . . . . . . . . 1 . . 1 Tunneler 5 | 5 . . . . . . . . . . . . . Hauler 3 | . . . . . . . . . . 1 . . 2 Recycler 1 | 1 . . . . . . . . . . . . . Mechanic 3 | . . . . . . . 1 . . 2 . . . Operator 1 | . . . . . 1 . . . . . . . . Turret 1 | . . . . . . . . . . . . 1 . Watcher 2 | . . . . . . . . . 1 1 . . . Swarmer 42 | . 3 . 8 13 5 4 1 4 . 4 . . . Cutter 2 | . . . . . 2 . . . . . . . . Grunt 208 | . 32 4 40 . 37 9 23 17 16 30 . . . Brawler 13 | . . . 1 . 2 1 . 2 6 1 . . . Duelist 22 | . . . 3 . 1 4 . 1 4 9 . . . Protector 7 | . . . 1 . . . . . 2 4 . . . Sentry 62 | . . . 8 . 12 4 8 5 13 7 3 . 2 Specialist 2 | . . . . . . . 2 . . . . . . Hunter 13 | . . . . . 2 . 5 1 2 3 . . . Programmer 9 | . . . . . . 4 . 2 2 . . . 1 Heavy 1 | . . . . . . . 1 . . . . . . Behemoth 2 | . . . . . . . . 2 . . . . . Bolteater 1 | . . . . . . . . . . . . 1 . Federalist 1 | . . . . . . . . . . . . 1 . Explorer 2 | . . . . . . . . . . . . 2 . Scrapper 3 | . . . . . . . . . . . . 3 . Thug 1 | . . 1 . . . . . . . . . . . Best Kill Streak 25 | 4 6 2 9 6 7 6 9 7 12 25 7 4 2 Combat Bots Only 24 | . 6 2 9 6 7 6 9 7 11 24 7 4 2 Max Kills in Single Turn 2 | 1 2 1 2 1 1 2 2 2 2 2 1 2 1 Gunslinging 1 | . . . 1 . . 1 . 1 1 . . 1 . Exploded . | . . . . . . . . . . . . . . Melee 1 | . . . . . . . . . . . . . 1 Uniques/NPCs Destroyed . | . . . . . . . . . . . . . . Combat | -11 -10 -10 -9 -9 -8 -8 -8 -8 -7 -7 -7 -7 -5 -------- Run | Yrd Mat Min Mat Min Mat Gar Mat Gar Fac Sto Rec Scr Fac Hostile Shots Fired 2157 | . 165 34 229 37 284 102 204 161 303 415 36 177 10 Missed 960 | . 50 11 100 15 93 45 96 72 156 220 14 86 2 Hits 1197 | . 115 23 129 22 191 57 108 89 147 195 22 91 8 Melee 40 | . . . 7 . 10 3 . . 3 7 . 10 . Projectile 1157 | . 115 23 122 22 181 54 108 89 144 188 22 81 8 AOE 4 | . . . . . 2 . . . . 2 . . . Critical Strikes 38 | . . . 3 . 9 5 4 1 7 6 . 3 . Actively Blocked 21 | . . . . . 1 1 2 1 7 6 . 3 . Part Disruptions 1 | . . . . . . . . 1 . . . . . Damage Taken 12073 | . 1379 242 1065 41 2212 665 1200 1304 1132 1623 77 987 146 Core 7979 | . 1031 139 717 23 1443 340 654 776 809 1104 53 776 114 Absorbed by Shields 3766 | . . 44 488 88 708 156 444 286 540 588 88 304 32 Redirected to Core 6407 | . 667 116 546 18 1185 306 547 596 654 944 40 674 114 Redirected to Shielding 517 | . . . 18 . 66 80 179 174 . . . . . Ignored by Resistances 1088 | . . . 67 44 106 39 202 116 199 299 . . 16 Regen/Repaired (Parts) 10 | . . . 10 . . . . . . . . . . Core Remaining (%) 84 | 100 . 99 . 100 . . . 86 . . . 39 . Volleys Fired 1333 | 28 121 27 187 19 190 213 111 130 123 158 8 18 . Largest 3 | 2 2 2 2 2 3 3 3 3 3 3 3 3 . Hottest 168 | 40 40 40 40 40 110 110 110 110 168 133 130 130 . Shots Fired 3203 | 56 242 54 373 38 524 356 330 372 310 474 24 50 . Gun 3201 | 56 242 54 373 38 524 356 330 372 310 474 24 48 . Cannon . | . . . . . . . . . . . . . . Launcher . | . . . . . . . . . . . . . . Special 2 | . . . . . . . . . . . . 2 . Kinetic 2443 | 56 242 54 373 38 380 285 221 242 185 317 16 34 . Thermal 758 | . . . . . 144 71 109 130 125 157 8 14 . Explosive . | . . . . . . . . . . . . . . Electromagnetic . | . . . . . . . . . . . . . . Robot Hit Streak 86 | 4 19 11 24 24 23 22 28 23 47 86 45 53 . Robot Miss Streak 6 | 3 3 2 5 2 6 4 3 2 3 2 . 1 . Penetration Max . | . . . . . . . . . . . . . . Secondary Targets 60 | . . . 2 . 11 7 7 6 7 16 . 4 . Max Gunslinging Chain 2 | . . . 1 . 1 1 1 1 1 1 . 2 . Shots Hit Robots 2265 | 26 170 41 259 21 396 145 254 196 273 399 20 35 30 Core Hits 1039 | 9 64 15 117 13 147 58 95 70 166 243 12 16 14 Critical Kills 6 | . . . . . 2 . . . 3 1 . . . Critical Parts Destroyed 8 | . 4 . 1 . 2 . . . 1 . . . . Critical Strikes 44 | . 4 . 1 . 14 7 4 2 4 1 . 1 6 Burn 23 | . . . . . 10 7 4 2 . . . . . Destroy 14 | . 4 . 1 . 4 . . . 4 1 . . . Sever 7 | . . . . . . . . . . . . 1 6 Melee Attacks 43 | . . . . . . . . . . . . 3 40 Impact . | . . . . . . . . . . . . . . Slashing 43 | . . . . . . . . . . . . 3 40 Piercing . | . . . . . . . . . . . . . . Sneak Attacks 11 | . . . . . . . . . . . . . 11 Combat Hostiles 4 | . . . . . . . . . . . . . 4 Follow-up Attacks 16 | . . . . . . . . . . . . 1 15 Damage Inflicted 38955 | 322 2144 529 3261 263 5794 2381 3878 3729 5919 8452 452 723 1108 Guns 37758 | 322 2144 529 3261 263 5794 2381 3878 3729 5919 8452 452 634 . Cannons . | . . . . . . . . . . . . . . Explosions . | . . . . . . . . . . . . . . Melee 1160 | . . . . . . . . . . . . 52 1108 Ramming 37 | . . . . . . . . . . . . 37 . Kinetic 24201 | 322 2144 529 3261 263 3934 1535 2373 2381 2839 4115 207 298 . Thermal 13557 | . . . . . 1860 846 1505 1348 3080 4337 245 336 . Explosive . | . . . . . . . . . . . . . . Electromagnetic . | . . . . . . . . . . . . . . Impact . | . . . . . . . . . . . . . . Slashing 1160 | . . . . . . . . . . . . 52 1108 Piercing . | . . . . . . . . . . . . . . Highest Corruption 5 | . . . 5 5 . 2 4 5 1 3 3 1 . Average Corruption 2 | . . . 2 5 . 1 3 4 1 1 3 1 . Corruption Purged . | . . . . . . . . . . . . . . Corruption Blocked . | . . . . . . . . . . . . . . Effects 73 | . . . 17 9 . 3 16 16 2 6 3 1 . Message Errors 21 | . . . 5 4 . . 2 5 1 2 1 1 . Matter Fused 10 | . . . 3 1 . . 1 4 . . 1 . . Heat Flow Errors 6 | . . . 1 1 . 1 2 . . . 1 . . Energy Discharges 11 | . . . 3 1 . . 2 3 1 1 . . . Parts Rejected 1 | . . . 1 . . . . . . . . . . Data Loss (minor) 11 | . . . 2 2 . 1 3 2 . 1 . . . Data Loss (major) 2 | . . . 1 . . . . 1 . . . . . Misfires 5 | . . . . . . 1 2 1 . 1 . . . Alerts 2 | . . . . . . . 2 . . . . . . Weapon Failures 4 | . . . 1 . . . 2 . . 1 . . . Overload Shots . | . . . . . . . . . . . . . . Overflow Damage . | . . . . . . . . . . . . . . Projectiles . | . . . . . . . . . . . . . . Explosions . | . . . . . . . . . . . . . . Melee . | . . . . . . . . . . . . . . Knockbacks 1 | . . . . . . . . . . . . 1 . Impact 1 | . . . . . . . . . . . . 1 . Kinetic . | . . . . . . . . . . . . . . Secondary . | . . . . . . . . . . . . . . Self-Inflicted Damage 18 | . . . . . . . . . . . . 18 . Shots . | . . . . . . . . . . . . . . Rammed 1 | . . . . . . . . . . . . 1 . Targets Rammed 1 | . . . . . . . . . . . . 1 . Kicked . | . . . . . . . . . . . . . . Crushed . | . . . . . . . . . . . . . . Highest Temperature 333 | . . . 238 108 38 148 186 56 333 302 110 9 . Average Temperature 56 | . . . 145 58 8 21 17 14 121 75 59 8 . Received Heat Transfer 4394 | . 744 135 396 . 953 180 401 329 381 364 26 450 35 Effects 5 | . . . . . . . . . 2 3 . . . Energy Bleed 1 | . . . . . . . . . 1 . . . . Interference 3 | . . . . . . . . . . 3 . . . Short Circuit 1 | . . . . . . . . . 1 . . . . Siege Activations . | . . . . . . . . . . . . . . Martial Activations . | . . . . . . . . . . . . . . Shielding Activations . | . . . . . . . . . . . . . . Robots Disrupted . | . . . . . . . . . . . . . . Combat Hostiles . | . . . . . . . . . . . . . . Robots Corrupted . | . . . . . . . . . . . . . . Combat Hostiles . | . . . . . . . . . . . . . . Parts Fried . | . . . . . . . . . . . . . . Impact Corruptions . | . . . . . . . . . . . . . . Robots Melted . | . . . . . . . . . . . . . . Combat Hostiles . | . . . . . . . . . . . . . . Parts Melted 35 | . . . . . 7 5 4 3 6 7 1 2 . Heat Transferred 30711 | . . . . . 5106 2441 3737 2664 6639 8994 550 580 . Parts Sabotaged . | . . . . . . . . . . . . . . Parts Stolen 1 | . . . . . . . . . . . . 1 . Parts Stripped . | . . . . . . . . . . . . . . Power Chain Reactions . | . . . . . . . . . . . . . . Alert | -11 -10 -10 -9 -9 -8 -8 -8 -8 -7 -7 -7 -7 -5 ------- Run | Yrd Mat Min Mat Min Mat Gar Mat Gar Fac Sto Rec Scr Fac Maximum Alert Level 5 | . 3 1 5 3 5 5 5 5 5 5 4 . . Low Security (%) 10 | 100 46 . 6 . . . . . . . . . 100 Level 1 10 | . 16 100 17 . 9 . . . . . . . . Level 2 7 | . 21 . 15 9 17 . . . . . . . . Level 3 12 | . 15 . 27 90 27 . . . . . . . . Level 4 16 | . . . 26 . 23 34 14 . 2 36 100 . . Level 5 30 | . . . 6 . 22 65 85 100 36 . . . . High Security 12 | . . . . . . . . . 61 63 . . . Max Security . | . . . . . . . . . . . . . . Sterilizations 3 | . . . 1 . 1 . 1 . . . . . . Peak Influence 3244 | 10 808 328 1687 930 1802 2449 2944 3223 3158 3244 1364 . 97 Initial 1905 | . 3 315 113 655 335 1160 1193 1905 1691 1436 1264 . . Average 1370 | 2 346 293 851 843 1038 1883 2240 2637 2020 1984 1320 . 47 Influence Increases 14688 | 40 1250 203 2044 345 1963 1329 2179 1348 1693 1958 180 . 156 Destroy 0b10 Robot/C 8040 | . 700 120 1200 260 1220 660 1140 680 860 1080 60 . 60 Destroy 0b10 Robot/NC 150 | 40 5 . 10 . 5 . 10 . 15 50 . . 15 Destroy Leader 1592 | . 170 20 260 40 290 30 342 30 182 194 . . 34 Allied During Kill 189 | . . 3 . . . 38 145 3 . . . . . Successful Hack 38 | . . . . . 10 14 . 14 . . . . . Select Force Hacks 1200 | . 310 . 190 . 160 . 420 . . . 120 . . Disable Machine 105 | . . . 15 . 30 . . 15 30 15 . . . Anti-Garrison Action 900 | . . . . . . 500 . 400 . . . . . Destroy Structure 239 | . 5 . 9 . 8 87 2 116 6 4 . . 2 Partial Spotted 270 | . . . 60 . . . 60 . 90 15 . . 45 Lose Combat Pursuer 1965 | . 60 60 300 45 240 . 60 90 510 600 . . . Influence Decreases 14621 | 35 447 719 653 1168 1037 666 1696 1057 1758 1872 2070 1354 89 Entered New Map 11724 | . 2 493 179 1028 525 626 1256 1027 1532 1722 1980 1354 . Time Decay 2697 | 35 445 206 474 140 502 . 380 . 206 140 90 . 79 Lost Part 30 | . . . . . . . . 10 . 10 . . 10 Lost Ally 170 | . . 20 . . 10 40 60 20 20 . . . . Squads Dispatched 108 | . 13 . 13 . 17 . 20 . 26 18 . . 1 Investigation 46 | . 12 . 10 . 9 . 14 . . 1 . . . Extermination 2 | . . . . . . . . . 1 . . . 1 Reinforcement 8 | . 1 . 1 . 3 . 2 . . 1 . . . Assault 41 | . . . 2 . 2 . 1 . 22 14 . . . Garrison 11 | . . . . . 3 . 3 . 3 2 . . . Intercept . | . . . . . . . . . . . . . . Searches Triggered . | . . . . . . . . . . . . . . Construction Impeded 1 | . . . . . 1 . . . . . . . . Haulers Reinforced . | . . . . . . . . . . . . . . Active Scanning Responses . | . . . . . . . . . . . . . . Cargo Convoy Interrupts . | . . . . . . . . . . . . . . Stealth | -11 -10 -10 -9 -9 -8 -8 -8 -8 -7 -7 -7 -7 -5 --------- Run | Yrd Mat Min Mat Min Mat Gar Mat Gar Fac Sto Rec Scr Fac Distress Signals 17 | . 3 . 7 . 5 . 1 . . 1 . . . Communications Jammed . | . . . . . . . . . . . . . . Distress Signals . | . . . . . . . . . . . . . . Times Spotted 719 | . 56 13 102 17 86 32 71 34 102 143 3 55 5 Peak Tracking Total 30 | . 7 6 12 4 8 6 7 5 22 30 1 15 2 Tactical Retreats 59 | . 4 3 12 2 10 . 2 2 10 13 . 1 . Traps | -11 -10 -10 -9 -9 -8 -8 -8 -8 -7 -7 -7 -7 -5 ------- Run | Yrd Mat Min Mat Min Mat Gar Mat Gar Fac Sto Rec Scr Fac Traps Triggered 26 | . 3 . 3 . 2 8 3 4 3 . . . . Indirectly . | . . . . . . . . . . . . . . Trap Hack Attempts . | . . . . . . . . . . . . . . Triggered . | . . . . . . . . . . . . . . Disarmed . | . . . . . . . . . . . . . . Reprogrammed . | . . . . . . . . . . . . . . Reused . | . . . . . . . . . . . . . . Traps Extracted . | . . . . . . . . . . . . . . Installed . | . . . . . . . . . . . . . . Triggered . | . . . . . . . . . . . . . . Machines | -11 -10 -10 -9 -9 -8 -8 -8 -8 -7 -7 -7 -7 -5 ---------- Run | Yrd Mat Min Mat Min Mat Gar Mat Gar Fac Sto Rec Scr Fac Machines Disabled 26 | . 1 . 1 . 2 6 . 9 2 1 . 4 . Max in Single Turn 2 | . 1 . 1 . 1 1 . 2 1 1 . 1 . Garrison Relay 12 | . . . . . . 6 . 6 . . . . . Phase Generator 1 | . . . . . . . . 1 . . . . . Machines Repaired . | . . . . . . . . . . . . . . Machines Dismantled . | . . . . . . . . . . . . . . Machines Sabotaged 15 | . 5 . 2 . 2 . 6 . . . . . . Overloaded Fab Kills . | . . . . . . . . . . . . . . Hacking | -11 -10 -10 -9 -9 -8 -8 -8 -8 -7 -7 -7 -7 -5 --------- Run | Yrd Mat Min Mat Min Mat Gar Mat Gar Fac Sto Rec Scr Fac Machines Accessed 55 | . 9 1 10 . 10 4 14 2 . 1 4 . . Terminals 32 | . 6 . 5 . 7 4 7 2 . 1 . . . Fabricators . | . . . . . . . . . . . . . . Repair Stations 5 | . 1 . 2 . . . 2 . . . . . . Recycling Units 11 | . 2 . 2 . 1 . 2 . . . 4 . . Scanalyzers 4 | . . . 1 . 1 . 2 . . . . . . Garrison Access 2 | . . . . . 1 . 1 . . . . . . Total Hacks 104 | . 15 1 24 . 20 9 22 4 . 4 5 . . Successful 53 | . 8 1 12 . 10 2 14 1 . 1 4 . . Failed 51 | . 7 . 12 . 10 7 8 3 . 3 1 . . Catastrophic 6 | . . . . . 1 4 . . . 1 . . . Database Lockouts . | . . . . . . . . . . . . . . Manual 81 | . 15 . 23 . 16 . 21 . . 1 5 . . Terminals 67 | . 11 . 12 . 14 9 13 4 . 4 . . . Fabricators . | . . . . . . . . . . . . . . Repair Stations 8 | . 1 . 4 . . . 3 . . . . . . Recycling Units 15 | . 3 . 3 . 2 . 2 . . . 5 . . Scanalyzers 9 | . . . 5 . 1 . 3 . . . . . . Garrison Access 4 | . . . . . 3 . 1 . . . . . . Terminal Hacks 6 | . . 1 1 . . 2 . 1 . 1 . . . Open Door 3 | . . 1 . . . 1 . . . 1 . . . Branch Access Points 1 | . . . 1 . . . . . . . . . . Emergency Access Points 1 | . . . . . . 1 . . . . . . . Garrison Registry 1 | . . . . . . . . 1 . . . . . Fabricator Hacks . | . . . . . . . . . . . . . . Repair Station Hacks . | . . . . . . . . . . . . . . Recycling Unit Hacks . | . . . . . . . . . . . . . . Scanalyzer . | . . . . . . . . . . . . . . Garrison Access Hacks 2 | . . . . . 1 . 1 . . . . . . Unlock Access 2 | . . . . . 1 . 1 . . . . . . Unauthorized Hacks 44 | . 8 . 10 . 9 . 13 . . . 4 . . Terminals 24 | . 5 . 5 . 7 . 7 . . . . . . Assimilate 1 | . . . . . 1 . . . . . . . . Sabotage 21 | . 5 . 4 . 5 . 7 . . . . . . Search 2 | . . . 1 . 1 . . . . . . . . Fabricators . | . . . . . . . . . . . . . . Repair Stations 5 | . 1 . 2 . . . 2 . . . . . . Patch 5 | . 1 . 2 . . . 2 . . . . . . Recycling Units 11 | . 2 . 2 . 1 . 2 . . . 4 . . Tunnel 11 | . 2 . 2 . 1 . 2 . . . 4 . . Scanalyzers 4 | . . . 1 . 1 . 2 . . . . . . Extract 4 | . . . 1 . 1 . 2 . . . . . . Garrison Access . | . . . . . . . . . . . . . . Data Cores Recovered 1 | . . . . . 1 . . . . . . . . Used . | . . . . . . . . . . . . . . Hacking Detections 18 | . 2 . 5 . 2 4 . 2 . 2 1 . . Full Trace Events 8 | . 1 . . . 1 4 . 1 . 1 . . . Feedback Events . | . . . . . . . . . . . . . . Feedback Blocked . | . . . . . . . . . . . . . . Robot Schematics Acquired . | . . . . . . . . . . . . . . Robots Built . | . . . . . . . . . . . . . . Authchips . | . . . . . . . . . . . . . . Time . | . . . . . . . . . . . . . . Total Robot Build Rating . | . . . . . . . . . . . . . . Part Schematics Acquired 11 | . . . 4 . 2 . 5 . . . . . . Parts Built . | . . . . . . . . . . . . . . Authchips . | . . . . . . . . . . . . . . Time . | . . . . . . . . . . . . . . Total Part Build Rating . | . . . . . . . . . . . . . . Part Studies Acquired . | . . . . . . . . . . . . . . Parts Repaired . | . . . . . . . . . . . . . . Time . | . . . . . . . . . . . . . . Parts Recycled . | . . . . . . . . . . . . . . Recycled Matter . | . . . . . . . . . . . . . . Retrieved Matter . | . . . . . . . . . . . . . . Retrieved Components . | . . . . . . . . . . . . . . Parts Scanalyzed . | . . . . . . . . . . . . . . Part Schematics Acquired . | . . . . . . . . . . . . . . Parts Damaged . | . . . . . . . . . . . . . . Bothacking | -11 -10 -10 -9 -9 -8 -8 -8 -8 -7 -7 -7 -7 -5 ------------ Run | Yrd Mat Min Mat Min Mat Gar Mat Gar Fac Sto Rec Scr Fac Used RIF Installer . | . . . . . . . . . . . . . . Robots Hacked . | . . . . . . . . . . . . . . Non-combat . | . . . . . . . . . . . . . . Combat . | . . . . . . . . . . . . . . Robot Hacks Applied . | . . . . . . . . . . . . . . Relay Couplers Released 20 | . . . . . . 9 . 11 . . . . . Machine Destruction 18 | . . . . . . 7 . 11 . . . . . Programmers 2 | . . . . . . 2 . . . . . . . Fabnet Peak Effective % . | . . . . . . . . . . . . . . Robots Rewired 6 | . . . . . . 5 . . 1 . . . . Allies Hacked 1 | . . . . . . . . 1 . . . . . Hacks Repelled . | . . . . . . . . . . . . . . Allies | -11 -10 -10 -9 -9 -8 -8 -8 -8 -7 -7 -7 -7 -5 -------- Run | Yrd Mat Min Mat Min Mat Gar Mat Gar Fac Sto Rec Scr Fac Total Allies 17 | . . 1 . 3 1 5 . 1 1 . . 5 . Largest Group 5 | . . 1 . 3 1 2 3 1 1 . . 5 . Highest-Rated Group 235 | . . 31 . 40 10 80 120 39 22 . . 235 . Highest-Rated Ally 47 | . . 31 . 16 10 40 40 39 22 . . 47 . Initial UFD Resources 38 | . . . . . . . . . . . . . 38 Initial Warlord ECA Mod 14 | . . . . . . . 6 6 14 14 14 14 . Total Orders 1 | . . . . . 1 . . . . . . . . STAY 1 | . . . . . 1 . . . . . . . . Ally Attacks 173 | . . 13 . . . 30 54 2 5 . . 69 . Total Damage 3348 | . . 168 . . . 384 1371 . 89 . . 1336 . Kills 43 | . . 2 . . . 7 18 . . . . 16 . Allies Corrupted . | . . . . . . . . . . . . . . Allies Melted 4 | . . . . . . . . . . . . 4 . Intel | -11 -10 -10 -9 -9 -8 -8 -8 -8 -7 -7 -7 -7 -5 ------- Run | Yrd Mat Min Mat Min Mat Gar Mat Gar Fac Sto Rec Scr Fac Active Infowar (turns) 6328 | 99 900 309 1218 298 1358 969 825 . 147 . . 19 186 Structural 205 | . . . . . . . . . . . . 19 186 Seismic 5976 | 99 900 309 1218 298 1358 969 825 . . . . . . Jamming 147 | . . . . . . . . . 147 . . . . Robot Analysis Total . | . . . . . . . . . . . . . . Derelict Logs Recovered 4 | . . 3 . 1 . . . . . . . . . Drone Launches . | . . . . . . . . . . . . . . Drone Recoveries . | . . . . . . . . . . . . . . Exploration | -11 -10 -10 -9 -9 -8 -8 -8 -8 -7 -7 -7 -7 -5 ------------- Run | Yrd Mat Min Mat Min Mat Gar Mat Gar Fac Sto Rec Scr Fac Turns Passed 10284 | 166 1248 426 1218 298 1358 969 881 783 1090 800 191 670 186 Spaces Moved 16129 | 89 1362 772 1343 758 1771 1016 1512 1057 2413 914 593 2132 397 Core 383 | 88 295 . . . . . . . . . . . . Treads 1 | 1 . . . . . . . . . . . . . Legs . | . . . . . . . . . . . . . . Wheels 483 | . . . . . . . . . . . . 86 397 Hover . | . . . . . . . . . . . . . . Flight 15262 | . 1067 772 1343 758 1771 1016 1512 1057 2413 914 593 2046 . Fastest Speed 24 | 50 29 29 29 29 26 26 26 26 24 25 25 25 28 Average Speed 27 | 52 35 29 29 29 26 26 26 26 24 25 25 25 28 Slowest Speed 160 | 160 60 29 29 29 29 26 26 26 99 99 25 28 28 Overloaded Moves . | . . . . . . . . . . . . . . Propulsion Burnouts . | . . . . . . . . . . . . . . Robots Hopped 237 | . 44 15 56 12 22 . 32 1 21 23 7 4 . Potential Cave-ins . | . . . . . . . . . . . . . . Cave-ins Triggered . | . . . . . . . . . . . . . . Exploration Rate (%) 76 | 4 98 99 82 98 90 92 95 87 57 72 99 86 14 Regions Visited 13 Branch Regions 5 Pre-discovered Areas 13 | . 2 1 2 . 1 . 2 . . 1 4 . . Known Exits Taken 9 | . . 1 1 1 1 . 1 . 1 1 1 1 . Unknown Exits Taken 2 | 1 1 . . . . . . . . . . . . Scrap Searched 5 | . . 1 . 1 . . . . . . . 3 . Spaces Dug 2 | . . . . . . . . . . . . 1 1 Terrain Destroyed 78 | . . . . . . . . 76 . . . 1 1 Melee 2 | . . . . . . . . . . . . 1 1 Projectile . | . . . . . . . . . . . . . . AOE 76 | . . . . . . . . 76 . . . . . Terrain Rammed . | . . . . . . . . . . . . . . Walls Destroyed . | . . . . . . . . . . . . . . Machines Disabled . | . . . . . . . . . . . . . . Actions | -11 -10 -10 -9 -9 -8 -8 -8 -8 -7 -7 -7 -7 -5 --------- Run | Yrd Mat Min Mat Min Mat Gar Mat Gar Fac Sto Rec Scr Fac Total 19662 | 148 1838 905 1740 785 2264 1503 1762 1348 2751 1317 622 2237 442 Wait 1399 | 24 315 101 198 10 178 51 87 75 117 186 . 38 19 Move 15687 | 88 1282 742 1239 733 1729 1015 1452 1054 2373 880 578 2125 397 Hop 193 | . 35 14 47 12 19 . 27 1 18 10 7 3 . Pick Up 54 | . 4 4 4 . 8 . 3 2 10 10 2 7 . Fast Attach 40 | 7 4 1 3 . 8 1 2 . 8 . 1 4 1 Attach 13 | . 2 2 1 . 3 . 1 . . . . 3 1 Detach 6 | 1 3 . . . 2 . . . . . . . . Swap 50 | . 8 2 . . 7 . 5 2 14 5 . 5 2 Drop 80 | . 11 4 3 1 12 . 5 3 17 10 3 9 2 Fire 1333 | 28 121 27 187 19 190 213 111 130 123 158 8 18 . Melee 22 | . . . . . . . . . . . . 2 20 Ram . | . . . . . . . . . . . . . . Kick . | . . . . . . . . . . . . . . Crush . | . . . . . . . . . . . . . . Escape Stasis 146 | . . . . . . 120 . 26 . . . . . Rewire 88 | . . . . . . 74 . . 14 . . . . Trap . | . . . . . . . . . . . . . . Miscellaneous 551 | . 53 8 58 10 108 29 69 55 57 58 23 23 . Route ------- -11/Scrapyard -10/Materials (discovered 4 exits: *Mat x3 / *Min) -10/Mines (discovered 3 exits: *Mat x2 / *Sub) -9/Materials (discovered 4 exits: *Mat x2 / *Min x2) -9/Mines (discovered 4 exits: *Mat x2 / *Exi / [*Zio]) -8/Materials (discovered 3 exits: *Fac x2 / Gar) -8/Garrison (discovered 4 exits: *Mat x4) -8/Materials (discovered 4 exits: *Fac x3 / Gar) -8/Garrison (discovered 3 exits: *Fac x3) -7/Factory (discovered 3 exits: *Fac x2 / *Sto) -7/Storage (discovered 2 exits: *Fac / *Rec) -7/Recycling (discovered 2 exits: *Fac / *Scr) -7/Scraptown (discovered 2 exits: *Fac x2) -5/Factory (discovered 1 exit: [Ext]) History --------- Turn | Location | Event 1 | -11/Scrapyard | Upgraded with Propulsion slot (x1) 1 | -11/Scrapyard | Upgraded with Utility slot (x2) 1 | -11/Scrapyard | Upgraded with Weapon slot (x1) 18 | -11/Scrapyard | Discovered new exit (range 15) 167 | -11/Scrapyard | Entered Materials 223 | -10/Materials | Discovered new exit (range 8) 314 | -10/Materials | Build established: Mutant 315 | -10/Materials | Discovered new exit (range 16) 549 | -10/Materials | Discovered new exit (range 16) 568 | -10/Materials | Reached level 2 660 | -10/Materials | Discovered new exit (range 5) 769 | -10/Materials | Upgraded with Propulsion slot (x1) 881 | -10/Materials | Reached level 3 941 | -10/Materials | Build established: Sprinter 950 | -10/Materials | Core integrity fell below 50% 1073 | -10/Materials | Reached level 4 1112 | -10/Materials | Upgraded with Utility slot (x1) 1415 | -10/Materials | Entered Mines 1417 | -10/Mines | Reached level 5 1420 | -10/Mines | Discovered new exit (range 6) 1424 | -10/Mines | Discovered new exit (range 11) 1427 | -10/Mines | Received a Mining Laser from a helpful Derelict 1494 | -10/Mines | Met a Derelict bent on vengeance 1532 | -10/Mines | Upgraded with Utility slot (x1) 1623 | -10/Mines | Met a Derelict who couldn't figure out how to use a Trap Extractor 1654 | -10/Mines | Discovered new exit (range 6) 1655 | -10/Mines | Identified exit to Subcaves 1680 | -10/Mines | Excavation squad dispatched 1680 | -10/Mines | A large section of the Mines collapsed 1834 | -10/Mines | Identified exit to Materials 1841 | -10/Mines | Entered Materials 1842 | -9/Materials | Identified exit to Mines 1843 | -9/Materials | Reached level 6 1990 | -9/Materials | Reached level 7 2052 | -9/Materials | Upgraded with Utility slot (x1) 2167 | -9/Materials | Reached level 8 2241 | -9/Materials | First assault squad dispatched 2283 | -9/Materials | Upgraded with Utility slot (x1) 2348 | -9/Materials | Destroyed 7 combat bots 2417 | -9/Materials | Reached level 9 2452 | -9/Materials | Destroyed 9 combat bots 2609 | -9/Materials | Discovered new exit (range 16) 2692 | -9/Materials | Identified exit to Materials 2718 | -9/Materials | Destroyed 9 combat bots 2855 | -9/Materials | Reached level 10 2882 | -9/Materials | Sterilization system engaged 2882 | -9/Materials | Non-combat units ordered to evacuate 2982 | -9/Materials | Combat units ordered to evacuate 3026 | -9/Materials | Discovered exit to Materials (range 6) 3059 | -9/Materials | Entered Mines 3064 | -9/Mines | Deemed a non-threat by the Exiles lab entrance 3064 | -9/Mines | Discovered new exit (range 5) 3064 | -9/Mines | Identified exit to Exiles 3141 | -9/Mines | Learned Materials terminal intel 3162 | -9/Mines | Found a hidden stash of uninstalled traps 3183 | -9/Mines | Discovered exit to Materials (range 6) 3237 | -9/Mines | Discovered exit to Materials (range 10) 3242 | -9/Mines | A Derelict revealed a hidden shortcut to a safe place 3324 | -9/Mines | Assisted by bots powering up and referring to "LRC-V3" 3347 | -9/Mines | Upgraded with Weapon slot (x1) 3357 | -9/Mines | Entered Materials 3358 | -8/Materials | Loaded intel: 12 terminal locations 3359 | -8/Materials | Reached level 11 3478 | -8/Materials | Reached level 12 3489 | -8/Materials | Upgraded with Propulsion slot (x1) 3657 | -8/Materials | Garrison activated, responded to threat 3726 | -8/Materials | Core integrity fell below 50% 3756 | -8/Materials | Destroyed 7 combat bots 3757 | -8/Materials | First assault squad dispatched 3909 | -8/Materials | Reached level 13 3957 | -8/Materials | Discovered new exit (range 15) 4290 | -8/Materials | Identified exit to Factory 4414 | -8/Materials | Sterilization system engaged 4414 | -8/Materials | Non-combat units ordered to evacuate 4462 | -8/Materials | Destroyed 7 combat bots 4496 | -8/Materials | Identified exit to Garrison 4514 | -8/Materials | Combat units ordered to evacuate 4541 | -8/Materials | Reached level 14 4564 | -8/Materials | Upgraded with Utility slot (x1) 4676 | -8/Materials | Discovered exit to Factory (range 14) 4714 | -8/Materials | Ambient heat levels rising (+10) 4715 | -8/Materials | Entered Garrison 4817 | -8/Garrison | Garrison Relay disabled 4878 | -8/Garrison | Discovered new exit (range 14) 4880 | -8/Garrison | Discovered new exit (range 6) 4881 | -8/Garrison | Identified exit to Materials 4885 | -8/Garrison | Triggered checkpoint 4893 | -8/Garrison | Triggered checkpoint 4913 | -8/Garrison | Garrison Relay disabled 4965 | -8/Garrison | Triggered checkpoint 5107 | -8/Garrison | Discovered exit to Materials (range 8) 5114 | -8/Garrison | Garrison Relay disabled 5215 | -8/Garrison | Discovered exit to Materials (range 9) 5253 | -8/Garrison | Garrison Relay disabled 5322 | -8/Garrison | Reached level 15 5502 | -8/Garrison | Garrison Relay disabled 5573 | -8/Garrison | Garrison Relay disabled 5684 | -8/Garrison | Entered Materials 5684 | -8/Materials | Accompanied by 3 allies 5941 | -8/Materials | Identified exit to Garrison 6048 | -8/Materials | Discovered exit to Factory (range 16) 6084 | -8/Materials | First assault squad dispatched 6253 | -8/Materials | Discovered exit to Factory (range 16) 6315 | -8/Materials | Reached level 16 6333 | -8/Materials | Upgraded with Utility slot (x1) 6339 | -8/Materials | Upgraded with Power slot (x1) 6350 | -8/Materials | Destroyed 9 combat bots 6458 | -8/Materials | Sterilization system engaged 6458 | -8/Materials | Non-combat units ordered to evacuate 6488 | -8/Materials | Discovered exit to Factory (range 4) 6558 | -8/Materials | Combat units ordered to evacuate 6565 | -8/Materials | Entered Garrison 6569 | -8/Garrison | Triggered checkpoint 6580 | -8/Garrison | Triggered checkpoint 6633 | -8/Garrison | Triggered checkpoint 6660 | -8/Garrison | Destroyed 7 combat bots 6675 | -8/Garrison | Rescued a captive Derelict 6715 | -8/Garrison | Triggered checkpoint 6853 | -8/Garrison | Triggered checkpoint 6854 | -8/Garrison | Garrison Relay disabled 6863 | -8/Garrison | Discovered exit to Factory (range 11) 6864 | -8/Garrison | Discovered exit to Factory (range 13) 6864 | -8/Garrison | Discovered exit to Factory (range 82) 6864 | -8/Garrison | Discovered exit to Factory (range 45) 6942 | -8/Garrison | Garrison Relay disabled 6948 | -8/Garrison | Triggered checkpoint 6993 | -8/Garrison | Garrison Relay disabled 7005 | -8/Garrison | Garrison Relay disabled 7021 | -8/Garrison | Triggered checkpoint 7036 | -8/Garrison | Garrison Relay disabled 7085 | -8/Garrison | Garrison Relay disabled 7099 | -8/Garrison | Triggered checkpoint 7109 | -8/Garrison | Spotted B-75 Beast 7109 | -8/Garrison | Spotted B-75 Beast 7120 | -8/Garrison | Destroyed 7 combat bots 7152 | -8/Garrison | Destroyed B-75 Beast 7176 | -8/Garrison | Destroyed B-75 Beast 7198 | -8/Garrison | Triggered checkpoint 7239 | -8/Garrison | Triggered checkpoint 7336 | -8/Garrison | Phase Generator disabled 7348 | -8/Garrison | Entered Factory 7349 | -7/Factory | Identified exit to Storage 7428 | -7/Factory | Build established: Scavenger-Sprinter 7511 | -7/Factory | Reached level 17 7536 | -7/Factory | Noticed a derelict Sapper rigging charges 7545 | -7/Factory | Discovered new exit (range 7) 7547 | -7/Factory | Identified exit to Factory 7616 | -7/Factory | Upgraded with Propulsion slot (x1) 7707 | -7/Factory | Discovered exit to Factory (range 10) 7772 | -7/Factory | High security lockdown imminent 7852 | -7/Factory | High security lockdown engaged 7979 | -7/Factory | Build established: Sprinter 8020 | -7/Factory | Garrison activated, responded to threat 8130 | -7/Factory | Destroyed 11 combat bots 8334 | -7/Factory | Destroyed 10 combat bots 8438 | -7/Factory | Entered Storage 8440 | -7/Storage | Reached level 18 8664 | -7/Storage | Used back door to open Recycling access 8664 | -7/Storage | Discovered new exit (range 5) 8732 | -7/Storage | High security lockdown imminent 8761 | -7/Storage | Destroyed 7 combat bots 8812 | -7/Storage | High security lockdown engaged 8990 | -7/Storage | Destroyed 24 combat bots 9015 | -7/Storage | Learned location of Armory (-3) 9015 | -7/Storage | Discovered exit to Factory (range 16) 9081 | -7/Storage | Garrison activated, responded to threat 9184 | -7/Storage | Identified exit to Recycling 9238 | -7/Storage | Entered Recycling 9242 | -7/Recycling | Reached level 19 9263 | -7/Recycling | Destroyed 7 combat bots 9323 | -7/Recycling | Discovered new exit (range 16) 9423 | -7/Recycling | Scanned before Scraplab entrance 9427 | -7/Recycling | Entered Scraplab 9429 | -7/Recycling | Discovered new exit (range 3) 9429 | -7/Recycling | Identified exit to Scraptown 9429 | -7/Recycling | Entered Scraptown 9429 | -7/Scraptown | System corruption cleaned by C-Scrubber 9449 | -7/Scraptown | Visited UFD Registry 9449 | -7/Scraptown | Registered with UFD as "Arcrigger" 9454 | -7/Scraptown | Visited Shadow of the Wyrm 9457 | -7/Scraptown | Visited TADAMA 9463 | -7/Scraptown | Visited Cyclists 9465 | -7/Scraptown | Entered Cyclist Reading Room 9476 | -7/Scraptown | Discovered new exit (range 11) 9575 | -7/Scraptown | Visited Curators Association 9586 | -7/Scraptown | Visited Sword Containment 9592 | -7/Scraptown | Visited Botcube Research 9597 | -7/Scraptown | Visited Cartography Club 9604 | -7/Scraptown | Visited Junk Repository 9610 | -7/Scraptown | Visited Scrapoid Pod Storage 9614 | -7/Scraptown | Visited Junk Cannon Lab 9649 | -7/Scraptown | Visited Junk Repository 9679 | -7/Scraptown | Found Scrapoid Pod 9845 | -7/Scraptown | Met Optimus 9845 | -7/Scraptown | Accepted into 0bPrime 9896 | -7/Scraptown | Civil war broke out across Scraptown 9898 | -7/Scraptown | Attached CPS modules to GE-PR8(r) 9901 | -7/Scraptown | Attached CPS modules to QD-68D(r) 9914 | -7/Scraptown | Upgraded with Weapon slot (x1) 9991 | -7/Scraptown | Scrapoid Pod released 07S05-D (x5) 10017 | -7/Scraptown | Found DM-GVY's Chainsaw 10028 | -7/Scraptown | Identified exit to Factory 10031 | -7/Scraptown | Lost 9 allies 10059 | -7/Scraptown | Found Ballwheel 10080 | -7/Scraptown | Found Deep Structural Scanner 10098 | -7/Scraptown | Core integrity fell below 50% 10099 | -7/Scraptown | Entered Factory 10100 | -5/Factory | Core integrity fell below 50% 10101 | -5/Factory | Reached level 20 10102 | -5/Factory | Upgraded with Weapon slot (x1) 10130 | -5/Factory | Lost 3 allies 10226 | -5/Factory | Discovered new exit (range 19) 10285 | -5/Factory | Self-destructed Last Messages --------------- 10213_ R-10 Processor collects Imp. Treads. 10216_ Penetrated by Slug. 10216_ Ripteeth follow-up attack on Y-64 Sentinel. 10216_ R-10 Processor collects Imp. Medium Armor Plating. 10218_ Y-64 Sentinel destroyed. 10226_ EXIT=FOUND You are entering the active sensor range of a Heavy class robot, which gives away their position but also has a chance to call more squads to reinforce the local area while you are within range. 10228_ R-10 Processor collects Wave Gun. 10245_ ALERT: Potential suspicious activity detected, Programmers report to Factory Zone 4S. 10257_ Sneak attack on A-15 Conveyor. 10257_ A-15 Conveyor Med. Treads severed. 10257_ Sneak attack on A-15 Conveyor. 10257_ Ripteeth follow-up attack on A-15 Conveyor. 10257_ Sneak attack on A-15 Conveyor. 10257_ Ripteeth follow-up attack on A-15 Conveyor. 10263_ A-15 Conveyor Imp. Ion Engine severed. 10263_ Ripteeth follow-up attack on A-15 Conveyor. Map ----- +----------------------------------------------------+ | ?????????????????????????????????????????????????? | | ?????????????????????????????????????????????????? | | ?????????????????????????????????????????????????? | | ?????????????????????????????????????????????????? | | ?????????????????????????????????????????????????? | | ?????????????????????????????????????????????????? | | ?????????????????????????????????????????????????? | | ?????????????????????????????????????????????????? | | ?????????????????????????????????????????????????? | | ?????????????????????????????????????????????????? | | ?????????????????????????????????????????????????? | | ?????????????????????????????????????????????????? | | ?????????????????????????????????????????????????? | | ??????????""""""""" ##############?????????????? | | ?????????? ##############?????????????? | | ?????????? ##############?????????????? | | ??????????##########################?????????????? | | ??????????#### ! ####?????????????? | | ??????????#### ####?????????????? | | ??????????#### ####?????????????? | | ??????????#### ####?????????????? | | ??????????#### ####?????????????? | | ????########## ####?????????????? | | ????########## ####?????????????? | | ????########## ####?????????????? | | ????###################+#@##########?????????????? | | ????#### + ##########?????????????? | | ????#### # ##########?????????????? | | ????#### # ##########?????????????? | | ????#### + # ???????????????????? | | ????#### # # ???????????????????? | | ????#### # # ???????????????????? | | ????#### # # ???????????????????? | | ????#### # # ""???????????????????? | | ????#### # # ""???????????????????? | | ????#### # + ""???????????????????? | | ???##### # # ???????????????????? | | ???##### # #"""???????????????????? | | ???######+######+#### #"Y ???????????????????? | | ???###### ###### #### #"""???????????????????? | | ???#### # ???????????????????? | | ???#### ####???????????????????? | | ####### T ## #???????????????????? | | # # """" """" ## #???????????????????? | | # # """"??????????????????????????????? | | # " " # """???????????????????????????????? | | # " " # """???????????????????????????????? | | # " " # """???????????????????????????????? | | # " " + """" "????????????????????????????? | | # " " # ??????????????????????????? | +----------------------------------------------------+ Best States ------------- Heat Dissipation 97 Energy Generation 37 Energy Capacity 360 Matter Stores 300 Matter Capacity 300 Sight Range 16 Robot Scan Range 18 Terrain Scan Density 10 Jamming Range 12 Additional Mass Support 9 Armor Coverage 450 Resistance: KI 30 Power Shielding 66 Weapon Shielding 66 Weapon Cycling 30 Evasion (%) 73 Targeting Accuracy 8 Recoil Reduction 1 Salvage Targeting 1 Item Schematics ----------------- Rocket Launcher | -9/Materials | Extracted EM Shotgun | -9/Materials | Extracted Flail | -9/Materials | Extracted Hcp. Battery | -9/Materials | Extracted Med. Armor Plating | -8/Materials | Extracted Datajack | -8/Materials | Extracted Insulated Plating | -8/Materials | Extracted Com. Matter Pod | -8/Materials | Extracted Carbon-fiber Leg | -8/Materials | Extracted Lgt. Deuterium Engine | -8/Materials | Extracted Hvy. Particle Cannon | -8/Materials | Extracted Robot Schematics ------------------ None Fabricated ------------ Nothing Repaired ---------- Nothing Studied --------- None Alien Tech Used ----------------- None Achievements -------------- None Challenges ------------ None RPGLIKE | -11 -10 -10 -9 -9 -8 -8 -8 -8 -7 -7 -7 -7 -5 --------- Run | Yrd Mat Min Mat Min Mat Gar Mat Gar Fac Sto Rec Scr Fac Levels Raised 19 | . 3 1 5 . 4 1 1 . 1 1 1 . 1 XP Earned 32001 | 3000 5984 1001 6986 663 5060 1526 1512 662 2025 1399 272 102 1809 XP Spent 31020 | 2970 3530 2500 5800 1610 5900 . 3100 . 1400 960 . 1850 1400 Upgrades 50 | 10 6 2 4 5 13 . 2 . 1 4 . 2 1 Power Slot 1 | . . . . . . . 1 . . . . . . Propulsion Slot 4 | 1 1 . . . 1 . . . 1 . . . . Utility Slot 8 | 2 1 1 2 . 1 . 1 . . . . . . Weapon Slot 4 | 1 . . . 1 . . . . . . . 1 1 Heat Dissipation 12 | 4 1 . . 3 . . . . . 4 . . . Energy Generation 2 | . . . . 1 1 . . . . . . . . Mass Support 4 | 1 1 1 1 . . . . . . . . . . Inventory Capacity 3 | 1 1 . . . . . . . . . . 1 . Sensor Range 9 | . . . . . 9 . . . . . . . . Ranged Accuracy 3 | . 1 . 1 . 1 . . . . . . . . Protomatter Created 5396 | . 541 28 557 95 1112 238 651 533 736 793 112 . . Integrity Restored 10898 | . 1164 180 1137 77 2209 524 1263 1154 1026 1212 486 466 . Core 7500 | . 986 180 692 52 1443 327 667 692 763 1014 259 425 . Parts 3398 | . 178 . 445 25 766 197 596 462 263 198 227 41 . Protomatter Decayed 5687 | . 6 37 91 61 126 104 318 158 142 202 . 4442 . Game ------ Seed CoolantCloakingScythe Manual? 0 Play Time 02:16:14 Cumulative 712.6 hours Start 2026.09.02 @ 14:42:16 End 2026.09.20 @ 14:44:01 Sessions 9 Manual Loads 0 Difficulty Rogue Special Mode Winter2019/RPGLIKE Game No. 375 Rogue 221 Adventurer 154 Explorer 0 Win Type - Total 25 Types 4/7/5/3/2/1/0/1/1/1 Lore% 95 Gallery% 89 Achievement% 69 Wizard Run 0 Options --------- Layout 0 ASCII 0 Keyboard 0 Movement Numpad Keybinds 0 Fullscreen 2 Font 18/SmallcapsGlow Map View 76x50 Zoom Use 0% Tactical HUD 1 Map Filters NONE Filters NONE Steam 1 RUN: 59920f5d-6be9-488e-985c-2fe000f9b852